Cogmind - Beta 10.1 @@@ ROGUE MODE // 2021.06.30 @ 06:36:31 // Winter2019/RPGLIKE Player: Farfid Result: Destroyed self with YOLO Cannon Performance ------------- Evolutions (0) 0 Regions Visited (4) 800 Robots Destroyed (33) 165 Value Destroyed (715) 715 Prototype IDs (26) 520 Alien Tech Used (0) 0 Bonus (226) 226 TOTAL SCORE: 2426 Bonus ------- Aligned with FarCom 300 Friendly Fire -74 Cogmind --------- Core Integrity 0/700 Matter 300/300 Energy 161/250 System Corruption 0% Temperature Cool (0) Movement Rolling (90) Ox1 Location -9/Mines Parts ------- > --- POWER (1) -------- Ion Engine > --- PROPULSION (2) --- Wheel > --- UTILITY (2) ------ Improved Heat Sink Enhanced Optical Array > --- WEAPON (2) ------- YOLO Cannon > --- INVENTORY (2) ---- Light Fission Core Plasma Cannon Peak State ------------ > --- POWER ------------ Ion Engine > --- PROPULSION ------- Wheel Wheel > --- UTILITY ---------- Improved Heat Sink Enhanced Optical Array > --- WEAPON ----------- YOLO Cannon > --- INVENTORY -------- Light Fission Core [Rating: 30] Favorites ----------- Power Ion Engine Engine Ion Engine Propulsion Wheel Wheel Wheel Utility Improved Heat Sink Device Improved Heat Sink Processor Enhanced Optical Array Weapon Beam Cannon Energy Gun Medium Laser Energy Cannon Beam Cannon Build | -11 -10 -10 -10 -9 ------- Run | Scr Mat Min Exi Min Slots Evolved 3 | 3 . . . . Power . | . . . . . Propulsion 1 | 1 . . . . Utility 1 | 1 . . . . Weapon 1 | 1 . . . . Parts Attached 11 | 5 1 3 1 1 Power 1 | 1 . . . . Engine 1 | 1 . . . . Core . | . . . . . Reactor . | . . . . . Propulsion 3 | 2 . 1 . . Treads . | . . . . . Leg . | . . . . . Wheel 3 | 2 . 1 . . Hover . | . . . . . Flight . | . . . . . Utility 2 | . . 1 . 1 Device 1 | . . 1 . . Storage . | . . . . . Processor 1 | . . . . 1 Hackware . | . . . . . Protection . | . . . . . Artifact . | . . . . . Weapon 5 | 2 1 1 1 . Energy Gun 3 | 2 . 1 . . Energy Cannon 2 | . 1 . 1 . Ballistic Gun . | . . . . . Ballistic Cannon . | . . . . . Launcher . | . . . . . Special Weapon . | . . . . . Impact Weapon . | . . . . . Slashing Weapon . | . . . . . Piercing Weapon . | . . . . . Special Melee Weapon . | . . . . . Unidentified Prototypes . | . . . . . Parts Lost 1 | . . . . 1 Power . | . . . . . Propulsion 1 | . . . . 1 Utility . | . . . . . Weapon . | . . . . . Highest Loss Streak 1 | . . . . 1 Average Slot Usage (%) 79 | . 71 83 79 80 Engine 14 | . 14 14 14 14 Wheel 27 | . 28 28 28 27 Device 10 | . . 12 14 14 Processor 2 | . . . . 9 Energy Gun 9 | . 15 14 8 . Energy Cannon 13 | . 12 14 14 14 Naked Turns . | . . . . . Heaviest Build 24 | 8 10 12 24 24 Greatest Support 31 | 31 31 31 25 25 Greatest Overweight (x) 1 | . . . . 1 Average Overweight (x) . | . . . . . Largest Inventory Capacity 2 | 1 1 1 1 2 Average Capacity 1 | 1 1 1 1 1 Most Carried 2 | . 1 1 1 2 Average Carried . | . . . . 1 Final Capacity 2 | 1 1 1 1 2 Final Carried 2 | . . . 1 2 Class Distribution -------------------- 100% | Mutant Dominant Class ---------------- Mutant | -10/Materials Mutant | -10/Mines Mutant | -10/Exiles Mutant | -9/Mines Resources | -11 -10 -10 -10 -9 ----------- Run | Scr Mat Min Exi Min Matter Collected 310 | 250 10 30 . 20 Remotely . | . . . . . Salvage Created 651 | . 296 334 . 21 Parts 44 | . 19 20 . 5 Haulers Intercepted . | . . . . . Recyclers Shooed . | . . . . . Parts Field Recycled . | . . . . . Retrieved Matter . | . . . . . Parts Self-Destructed . | . . . . . Prevented . | . . . . . Kills | -11 -10 -10 -10 -9 ------- Run | Scr Mat Min Exi Min Combat Hostiles Destroyed 30 | . 10 9 . 11 Guns 4 | . 3 1 . . Cannons 17 | . 7 5 . 5 AOE 9 | . . 3 . 6 Classes Destroyed 7 | . 2 2 . 3 Worker 1 | . . 1 . . Tunneler 1 | . . . . 1 Swarmer 12 | . 3 3 . 6 Grunt 12 | . 7 4 . 1 Sentry 2 | . . 2 . . Zionite 1 | . . . . 1 Assembled 4 | . . . . 4 Best Kill Streak 4 | . 3 4 . 4 Combat Bots Only 4 | . 3 3 . 4 Max Kills in Single Turn 4 | . 1 4 . 2 Gunslinging . | . . . . . Exploded 3 | . . 3 . 1 Melee . | . . . . . Uniques/NPCs Destroyed . | . . . . . Combat | -11 -10 -10 -10 -9 -------- Run | Scr Mat Min Exi Min Damage Taken 1289 | . 331 452 . 506 Core 1056 | . 269 380 . 407 Absorbed by Shields . | . . . . . Redirected to Core 801 | . 218 242 . 341 Core Remaining (%) 100 | 100 . . . . Volleys Fired 62 | . 25 22 . 15 Largest 2 | . 2 2 . 1 Hottest 116 | . 110 116 . 100 Shots Fired 108 | . 49 44 . 15 Gun 46 | . 24 22 . . Cannon 62 | . 25 22 . 15 Launcher . | . . . . . Special . | . . . . . Kinetic . | . . . . . Thermal 108 | . 49 44 . 15 Explosive . | . . . . . Electromagnetic . | . . . . . Robot Hit Streak 15 | . 10 15 . 3 Robot Miss Streak 3 | . 3 3 . 2 Penetration Max . | . . . . . Secondary Targets . | . . . . . Shots Hit Robots 82 | . 37 36 . 9 Core Hits 43 | . 16 15 . 12 Critical Hits 2 | . . . . 2 Critical Kills 2 | . . . . 2 Critical Parts Destroyed . | . . . . . Melee Attacks . | . . . . . Impact . | . . . . . Slashing . | . . . . . Piercing . | . . . . . Sneak Attacks . | . . . . . Combat Hostiles . | . . . . . Follow-up Attacks . | . . . . . Damage Inflicted 3375 | . 542 675 . 2158 Guns 467 | . 247 220 . . Cannons 1624 | . 295 301 . 1028 Explosions 1284 | . . 154 . 1130 Melee . | . . . . . Ramming . | . . . . . Kinetic . | . . . . . Thermal 3375 | . 542 675 . 2158 Explosive . | . . . . . Electromagnetic . | . . . . . Impact . | . . . . . Slashing . | . . . . . Piercing . | . . . . . Highest Corruption . | . . . . . Average Corruption . | . . . . . Corruption Purged . | . . . . . Overload Shots . | . . . . . Overflow Damage 553 | . . . . 553 Projectiles 324 | . . . . 324 Explosions 229 | . . . . 229 Melee . | . . . . . Knockbacks . | . . . . . Impact . | . . . . . Kinetic . | . . . . . Secondary . | . . . . . Self-Inflicted Damage 178 | . . . . 178 Shots 3 | . . . . 3 Rammed . | . . . . . Targets Rammed . | . . . . . Kicked . | . . . . . Crushed . | . . . . . Highest Temperature 10 | . 10 1 . . Average Temperature 1 | . 3 1 . . Received Heat Transfer 309 | . 99 204 . 6 Siege Activations . | . . . . . Robots Corrupted . | . . . . . Combat Hostiles . | . . . . . Parts Fried . | . . . . . Impact Corruptions . | . . . . . Robots Melted . | . . . . . Combat Hostiles . | . . . . . Parts Melted 12 | . 6 3 . 3 Heat Transferred 4827 | . 1369 1458 . 2000 Parts Sabotaged . | . . . . . Parts Stolen . | . . . . . Parts Stripped . | . . . . . Power Chain Reactions . | . . . . . Missiles Intercepted . | . . . . . Alert | -11 -10 -10 -10 -9 ------- Run | Scr Mat Min Exi Min Peak Influence 398 | . 354 398 . 240 Initial 138 | . . 138 . . Average 209 | . 174 310 . 133 Maximum Alert Level 1 | . 1 1 . 1 Low Security (%) 47 | 100 57 16 . 73 Level 1 52 | . 42 83 . 26 Level 2 . | . . . . . Level 3 . | . . . . . Level 4 . | . . . . . Level 5 . | . . . . . High Security . | . . . . . Max Security . | . . . . . Squads Dispatched 4 | . 3 . . 1 Investigation 4 | . 3 . . 1 Extermination . | . . . . . Reinforcement . | . . . . . Assault . | . . . . . Garrison . | . . . . . Intercept . | . . . . . Construction Impeded . | . . . . . Haulers Reinforced . | . . . . . Stealth | -11 -10 -10 -10 -9 --------- Run | Scr Mat Min Exi Min Distress Signals 1 | . 1 . . . Communications Jammed . | . . . . . Distress Signals . | . . . . . Times Spotted 41 | . 17 6 . 18 Peak Tracking Total 6 | . 6 2 . 5 Tactical Retreats 3 | . 1 . . 2 Traps | -11 -10 -10 -10 -9 ------- Run | Scr Mat Min Exi Min Traps Triggered 1 | . 1 . . . Indirectly . | . . . . . Trap Hack Attempts . | . . . . . Triggered . | . . . . . Disarmed . | . . . . . Reprogrammed . | . . . . . Reused . | . . . . . Traps Extracted . | . . . . . Installed . | . . . . . Triggered . | . . . . . Exploded 1 | . . . 1 . Machines | -11 -10 -10 -10 -9 ---------- Run | Scr Mat Min Exi Min Machines Disabled 5 | . . 2 . 3 Max in Single Turn 2 | . . 1 . 2 Machines Sabotaged . | . . . . . Garrisons Compromised . | . . . . . Overloaded Fab Kills . | . . . . . Fab Network Shutdowns . | . . . . . Hacking | -11 -10 -10 -10 -9 --------- Run | Scr Mat Min Exi Min Machines Accessed 9 | . 6 . 2 1 Terminals 4 | . 4 . . . Fabricators . | . . . . . Repair Stations . | . . . . . Recycling Units 2 | . 2 . . . Scanalyzers . | . . . . . Garrison Access . | . . . . . Total Hacks 16 | . 13 . 2 1 Successful 8 | . 5 . 2 1 Failed 7 | . 7 . . . Catastrophic 1 | . 1 . . . Database Lockouts 1 | . 1 . . . Manual 12 | . 11 . 1 . Terminals 11 | . 11 . . . Fabricators . | . . . . . Repair Stations . | . . . . . Recycling Units 2 | . 2 . . . Scanalyzers . | . . . . . Garrison Access . | . . . . . Terminal Hacks 6 | . 3 . 2 1 Record 1 | . . . 1 . Prototype ID Bank 2 | . 2 . . . Open Door 1 | . . . . 1 Locate Traps 1 | . 1 . . . EX-Prototype ID Bank 1 | . . . 1 . Fabricator Hacks . | . . . . . Repair Station Hacks . | . . . . . Recycling Unit Hacks . | . . . . . Scanalyzer . | . . . . . Garrison Access Hacks . | . . . . . Unauthorized Hacks 2 | . 2 . . . Terminals . | . . . . . Fabricators . | . . . . . Repair Stations . | . . . . . Recycling Units 2 | . 2 . . . Tunnel 2 | . 2 . . . Scanalyzers . | . . . . . Garrison Access . | . . . . . Data Cores Recovered . | . . . . . Used . | . . . . . Hacking Detections 3 | . 3 . . . Full Trace Events 1 | . 1 . . . Feedback Events . | . . . . . Feedback Blocked . | . . . . . Robot Schematics Acquired . | . . . . . Robots Built . | . . . . . Matter . | . . . . . Time . | . . . . . Total Robot Build Rating . | . . . . . Part Schematics Acquired . | . . . . . Parts Built . | . . . . . Matter . | . . . . . Time . | . . . . . Total Part Build Rating . | . . . . . Parts Repaired . | . . . . . Time . | . . . . . Parts Recycled . | . . . . . Recycled Matter . | . . . . . Retrieved Matter . | . . . . . Retrieved Components . | . . . . . Parts Scanalyzed . | . . . . . Part Schematics Acquired . | . . . . . Parts Damaged . | . . . . . Bothacking | -11 -10 -10 -10 -9 ------------ Run | Scr Mat Min Exi Min Used RIF Installer . | . . . . . Robots Hacked . | . . . . . Non-combat . | . . . . . Combat . | . . . . . Robot Hacks Applied . | . . . . . Relay Couplers Released . | . . . . . Robots Rewired . | . . . . . Allies Hacked . | . . . . . Hacks Repelled . | . . . . . Allies | -11 -10 -10 -10 -9 -------- Run | Scr Mat Min Exi Min Total Allies . | . . . . . Largest Group . | . . . . . Highest-Rated Group . | . . . . . Highest-Rated Ally . | . . . . . Total Orders . | . . . . . Ally Attacks . | . . . . . Total Damage . | . . . . . Kills . | . . . . . Allies Corrupted . | . . . . . Allies Melted . | . . . . . Intel | -11 -10 -10 -10 -9 ------- Run | Scr Mat Min Exi Min Robot Analysis Total . | . . . . . Derelict Logs Recovered 2 | . . 1 . 1 Drone Launches . | . . . . . Drone Recoveries . | . . . . . Exploration | -11 -10 -10 -10 -9 ------------- Run | Scr Mat Min Exi Min Turns Passed 1443 | 35 302 428 343 335 Spaces Moved 1224 | 32 192 403 316 281 Core 2 | 2 . . . . Treads . | . . . . . Legs . | . . . . . Wheels 1222 | 30 192 403 316 281 Hover . | . . . . . Flight . | . . . . . Fastest Speed 50 | 50 90 80 80 80 Average Speed 82 | 86 90 81 80 80 Slowest Speed 90 | 90 90 90 80 90 Overloaded Moves . | . . . . . Propulsion Burnouts . | . . . . . Robots Hopped . | . . . . . Cave-ins Triggered . | . . . . . Exploration Rate (%) 52 | 3 47 94 68 52 Regions Visited 4 Branch Regions 3 Pre-discovered Areas 4 | . 2 1 1 . Known Exits Taken . | . . . . . Unknown Exits Taken 4 | 1 1 1 1 . Scrap Searched 2 | . . 1 . 1 Spaces Dug . | . . . . . Terrain Destroyed 187 | . . 11 . 176 Melee . | . . . . . Projectile 4 | . . . . 4 AOE 183 | . . 11 . 172 Terrain Rammed . | . . . . . Walls Destroyed . | . . . . . Machines Disabled . | . . . . . Actions | -11 -10 -10 -10 -9 --------- Run | Scr Mat Min Exi Min Total 1521 | 36 272 458 406 349 Wait 195 | . 35 22 87 51 Move 1220 | 31 191 402 315 281 Hop . | . . . . . Pick Up 3 | . 1 . 1 1 Fast Attach 10 | 5 1 2 1 1 Attach . | . . . . . Detach . | . . . . . Swap 1 | . . 1 . . Drop 6 | . 2 2 2 . Fire 62 | . 25 22 . 15 Melee . | . . . . . Ram . | . . . . . Kick . | . . . . . Crush . | . . . . . Escape Stasis . | . . . . . Rewire . | . . . . . Trap . | . . . . . Miscellaneous 24 | . 17 7 . . Route ------- -11/Scrapyard -10/Materials -10/Mines (discovered 3 exits: [*Mat x2] / *Exi) -10/Exiles -9/Mines (discovered 1 exit: [*Mat]) History --------- Turn | Location | Event 1 | -11/Scrapyard | Upgraded with Propulsion slot (x1) 1 | -11/Scrapyard | Upgraded with Utility slot (x1) 1 | -11/Scrapyard | Upgraded with Weapon slot (x1) 8 | -11/Scrapyard | Discovered new exit (range 15) 36 | -11/Scrapyard | Entered Materials 245 | -10/Materials | Discovered new exit (range 12) 307 | -10/Materials | Build established: Mutant 307 | -10/Materials | Central database locked down 319 | -10/Materials | Reached level 2 338 | -10/Materials | Entered Mines 427 | -10/Mines | Discovered new exit (range 6) 532 | -10/Mines | Deemed a non-threat by the Exiles lab entrance 532 | -10/Mines | Discovered new exit (range 5) 553 | -10/Mines | Discovered new exit (range 7) 558 | -10/Mines | Received a Rocket Launcher from a helpful Derelict 565 | -10/Mines | Learned location of Storage (-9) 633 | -10/Mines | Reached level 3 766 | -10/Mines | Entered Exiles 787 | -10/Exiles | Met 8R-AWN 800 | -10/Exiles | Met EX-HEX 829 | -10/Exiles | Met EX-DEC 844 | -10/Exiles | Learned location of Zion (-6) 859 | -10/Exiles | Met EX-BIN 870 | -10/Exiles | Aligned with FarCom system 871 | -10/Exiles | Given EX-Vault access code 889 | -10/Exiles | Opened EX-Vault 909 | -10/Exiles | Warned to stay clear of 0b10 Research branches 950 | -10/Exiles | Exiles lab attacked by MAIN.C 972 | -10/Exiles | Found YOLO Cannon 1098 | -10/Exiles | Discovered new exit (range 10) 1109 | -10/Exiles | Left Exiles lab with YOLO Cannon 1109 | -10/Exiles | Entered Mines 1154 | -9/Mines | Found a damaged Exp. Sensor Array with a note attached 1201 | -9/Mines | Assembled infested the area 1205 | -9/Mines | Learned Materials non-interactive machine intel 1206 | -9/Mines | Assisted by a Guerilla fighting off Assembled 1212 | -9/Mines | Met a Derelict shopkeep closing up shop 1250 | -9/Mines | Core integrity fell below 50% 1250 | -9/Mines | Reached level 4 1313 | -9/Mines | Discovered new exit (range 5) 1350 | -9/Mines | Core integrity fell below 20% 1444 | -9/Mines | Destroyed self with YOLO Cannon Last Messages --------------- 01359_ S-10 Pest destroyed. 01360_ K-01 Serf collects debris. 01363_ Lgt. Ion Engine melted. 01363_ S-10 Pest destroyed. 01363_ K-01 Serf collects debris. 01387_ Destroyed Asb. Blade. 01387_ Destroyed Asb. Hover Unit. 01387_ as-80370 destroyed. 01391_ Destroyed Asb. Hover Unit. 01391_ as-91340 destroyed. 01415_ The unstable cave ceiling collapses. 01434_ Destroyed Asb. Blade. 01434_ Destroyed Asb. Hover Unit. 01434_ as-65600 destroyed. 01434_ Wheel destroyed. 01434_ Destroyed Wheel. 01440_ U-05 Engineer builds a Wall. 01444_ U-05 Engineer lays Concrete. 01444_ as-89822 suffers critical hit. 01444_ as-89822 destroyed. Map ----- +----------------------------------------------------+ | ?????????????????????????????????????????????????? | | ?????????????????????????????????????????????????? | | ?????????????????????????????????????????????????? | | ?????????????????????????????????????????????????? | | ?????????????????????????????????????????????????? | | ??????????????????????????????????????????????##?# | | ?????????????????????????????????????????##### ##" | | ???????????????????####?????????????????## " | | ?????????????####### ?????????????????#"""" | | ????????????##""""## #?????????#???????#" | | ????????????#"[=] "# #??????? ????????#" | | ????????????#" ]"# #?#####$#?????????#" | | ????????????## ## ## #?????????## " | | ????????????### ### #??????????# " | | ???????????## X # #???????????????# "" " | | ???????????# #????###?????????# " " "# | | ???????????# #??## ##????????# #""" # | | ???????????# #??# #???????## ##! | | ???????????## ##??# ##??????# | | ????????????## ##???? #??????# ## ]! | | ?????????????## ######?? #??????# ### | | ??????????????# ## ### #### ######### #### %=# | | ??????????????# ## ## ;;;;; ;; ### ###### | | ??????????????# ## #; ;; ##! ##??? | | ???????#####??# ## [ u ##?? | | ??????## "" ## #### @ ## #?? | | ??????# ;# #### #?? | | ??????#;; # ##??# #?? | | ?????## % ###;; ; # ;;; ## #??### #### | | ?????# !=% % % ; ## ###### #??# | | ???# a #####?# #????# #??# | | ??#"### #???# #???# #??# """ """ | | ??????## #???# #??# #??# """ """ | | ??????# # #= #???# #??# ##??# """ """ | | ??????# # ! ##???# #??# ##???# | | ??????##?## ######????# #??## ##????# """ """ | | ?????????# #a ##???##### #???####?###?# """ """ | | ????###?? = ##??# #####????# """ """ | | ???## ## # ##?# #????# ### | | ??## ### ###### #????# #?######### | | ??# #????# ###### ####### | | ??# """" #????# = | | ??# """" # ########????############## ! | | ? """" ##### ###????????????????????????# | | #???####??????????????????????????# | | ?#### #?????????????????????????????????# | | ????## ##?????????????????????????????????# | | ?????###???????????????????????????????????## | | ????????????????????????????????????????????###### | | ?????????????????????????????????????????????????? | +----------------------------------------------------+ Best States ------------- Heat Dissipation 63 Energy Generation 10 Energy Capacity 250 Matter Stores 300 Matter Capacity 300 Sight Range 22 Terrain Scan Density 10 Resistance: KI 5 Resistance: TH 5 Evasion (%) 44 Item Schematics ----------------- None Robot Schematics ------------------ None Fabricated ------------ Nothing Alien Tech Used ----------------- None Achievements -------------- None Challenges ------------ None RPGLIKE | -11 -10 -10 -10 -9 --------- Run | Scr Mat Min Exi Min Levels Raised 3 | . 1 1 . 1 XP Earned 8075 | 3000 1500 1700 350 1525 XP Spent 3430 | 2930 . . . 500 Upgrades 15 | 14 . . . 1 Propulsion Slot 1 | 1 . . . . Utility Slot 1 | 1 . . . . Weapon Slot 1 | 1 . . . . Core Integrity 2 | 2 . . . . Heat Dissipation 4 | 4 . . . . Mass Support 1 | 1 . . . . Inventory Capacity 2 | 1 . . . 1 Ranged Accuracy 1 | 1 . . . . KI Resistance % 1 | 1 . . . . TH Resistance % 1 | 1 . . . . Protomatter Created 175 | . 116 40 . 19 Integrity Restored 419 | . 304 115 . . Core 348 | . 269 79 . . Parts 71 | . 35 36 . . Protomatter Decayed 295 | . 11 . 284 . Game ------ Seed CoilGravmagGravjet Manual? 0 Play Time 00:15:11 Cumulative 491.6 hours Start 2021.06.30 @ 06:24:20 End 2021.06.30 @ 06:36:31 Sessions 1 Manual Loads 0 Difficulty Rogue Special Mode Winter2019/RPGLIKE Game No. 179 Rogue 179 Adventurer 0 Explorer 0 Win Type - Total 37 Types 24/2/6/2/2/0/0/0/1 Lore% 86 Gallery% 92 Achievement% 82 Wizard Run 0 Options --------- ASCII 0 Keyboard 0 Movement Mouse Keybinds 0 Fullscreen 2 Font 12/Smallcaps Map View 83x54 Tactical HUD 1 Map Filters NONE Filters NONE Steam X RUN: f1905ead-c0b0-4706-ac97-13418e9385e9